Cogmind - Beta 11.1 @@@ ROGUE MODE // 2022.05.06 @ 18:12:11 Player: Cmdr.Laserstrahl Result: Destroyed by Y-54 Guardian with Gatling Laser Performance ------------- Evolutions (3) 1500 Regions Visited (7) 1400 Robots Destroyed (53) 265 Value Destroyed (1727) 1727 Prototype IDs (2) 40 Alien Tech Used (0) 0 Bonus (329) 329 TOTAL SCORE: 5261 Bonus ------- High Alert Combat Kills 329 Cogmind --------- Core Integrity 0/700 Matter 94/300 Energy 17/100 System Corruption 2% Temperature Cool (27) Movement Core (50) Location -7/Lower Caves Parts ------- > --- POWER (1) -------- (None) > --- PROPULSION (4) --- (None) > --- UTILITY (6) ------ (None) > --- WEAPON (2) ------- (None) > --- INVENTORY (5) ---- Armored Huge Wheel Cryofiber Web Flak Cannon Advanced Assault Cannon Peak State ------------ > --- POWER ------------ Heavy Deuterium Engine > --- PROPULSION ------- Armored Huge Wheel Armored Huge Wheel > --- UTILITY ---------- Improved Cooling System Small Storage Unit Advanced Weight Redist. System Improved Sensor Array Core Shielding Improved Light Armor Plating > --- WEAPON ----------- Heavy Ion Cannon Advanced Assault Cannon > --- INVENTORY -------- Armored Huge Wheel Cryofiber Web ECM Suite Heavy Ion Cannon Flak Gun Grenade Launcher EMP Trap [Rating: 46] Favorites ----------- Power Heavy Deuterium Engine Engine Heavy Deuterium Engine Power Core Light Nuclear Core Propulsion Wheel Leg VSS Leg Wheel Wheel Hover Unit Improved Airjet Utility Small Storage Unit Device Advanced Weight Redist. System Storage Small Storage Unit Protection Core Shielding Weapon Assault Rifle Energy Gun EM Pulse Gun Energy Cannon Heavy Ion Cannon Ballistic Gun Assault Rifle Ballistic Cannon Gauss Cannon Launcher Grenade Launcher Special Weapon Mining Laser Build | -11 -10 -10 -10 -9 -8 -7 -7 ------- Run | Scr Mat Min Exi Min Mat Fac Low Slots Evolved 6 | . . . . . 4 2 . Power . | . . . . . . . . Propulsion 2 | . . . . . 1 1 . Utility 4 | . . . . . 3 1 . Weapon . | . . . . . . . . Parts Attached 52 | 6 1 1 . 5 3 33 3 Power 5 | 1 . 1 . . . 3 . Engine 4 | 1 . 1 . . . 2 . Core 1 | . . . . . . 1 . Reactor . | . . . . . . . . Propulsion 13 | 2 . . . 1 . 9 1 Treads . | . . . . . . . . Leg 1 | . . . . . . 1 . Wheel 11 | 2 . . . 1 . 7 1 Hover 1 | . . . . . . 1 . Flight . | . . . . . . . . Utility 14 | 1 1 . . 1 2 9 . Device 8 | . 1 . . . 2 5 . Storage 1 | 1 . . . . . . . Processor . | . . . . . . . . Hackware . | . . . . . . . . Protection 5 | . . . . 1 . 4 . Artifact . | . . . . . . . . Weapon 20 | 2 . . . 3 1 12 2 Energy Gun 1 | 1 . . . . . . . Energy Cannon 4 | . . . . . . 3 1 Ballistic Gun 4 | 1 . . . 1 . 2 . Ballistic Cannon 5 | . . . . 1 . 4 . Launcher 4 | . . . . . . 3 1 Special Weapon 2 | . . . . 1 1 . . Impact Weapon . | . . . . . . . . Slashing Weapon . | . . . . . . . . Piercing Weapon . | . . . . . . . . Special Melee Weapon . | . . . . . . . . Unidentified Prototypes 2 | . . . . . . 2 . Parts Lost 18 | . . . . . . 7 11 Power 2 | . . . . . . 1 1 Propulsion 3 | . . . . . . 1 2 Utility 8 | . . . . . . 3 5 Weapon 5 | . . . . . . 2 3 Highest Loss Streak 9 | . . . . . . 3 9 To Critical Strikes . | . . . . . . . . Average Slot Usage (%) 92 | . 98 100 100 100 73 89 64 Engine 9 | . 14 14 14 14 9 6 5 Wheel 20 | . 28 28 28 28 18 15 13 Hover 2 | . . . . . . 4 . Device 16 | . 12 14 14 6 10 19 20 Storage 10 | . 14 14 14 14 9 7 6 Protection 9 | . . . . 7 9 16 5 Energy Gun 4 | . 14 14 14 1 . . . Energy Cannon 1 | . . . . . . 2 11 Ballistic Gun 8 | . 14 14 14 19 14 3 . Ballistic Cannon 3 | . . . . 2 . 6 . Naked Turns 4 | . . . . . . . 4 Heaviest Build 43 | 12 14 16 16 17 17 43 39 Greatest Support 65 | 26 26 26 26 26 20 65 56 Greatest Overweight (x) 1 | . . . . . . 1 1 Average Overweight (x) . | . . . . . . . . Largest Inventory Capacity 8 | 8 8 8 8 8 8 8 8 Average Capacity 7 | 6 8 8 8 8 8 8 7 Most Carried 8 | 6 8 8 8 8 8 8 6 Average Carried 7 | 2 6 7 8 7 7 7 4 Final Capacity 8 | 8 8 8 8 8 8 8 5 Final Carried 8 | 4 8 8 8 8 8 6 5 Class Distribution -------------------- 100% | Mutant Dominant Class ---------------- Mutant | -10/Materials Mutant | -10/Mines Mutant | -10/Exiles Mutant | -9/Mines Mutant | -8/Materials Mutant | -7/Factory Mutant | -7/Lower Caves Resources | -11 -10 -10 -10 -9 -8 -7 -7 ----------- Run | Scr Mat Min Exi Min Mat Fac Low Matter Collected 1386 | 233 56 51 . 61 . 950 35 Remotely . | . . . . . . . . Salvage Created 1813 | 70 21 80 . 64 . 1432 146 Parts 82 | 3 2 3 . 5 . 64 5 Haulers Intercepted 3 | . . . . . . 3 . Recyclers Shooed 2 | . . . . . . 2 . Parts Field Recycled . | . . . . . . . . Retrieved Matter . | . . . . . . . . Parts Self-Destructed 5 | . . . . . . . 5 Prevented . | . . . . . . . . Kills | -11 -10 -10 -10 -9 -8 -7 -7 ------- Run | Scr Mat Min Exi Min Mat Fac Low Combat Hostiles Destroyed 37 | . . 2 . 2 . 29 4 Melee 1 | . . . . . . 1 . Guns 2 | . . 2 . . . . . Cannons 23 | . . . . 2 . 19 2 AOE 10 | . . . . . . 8 2 Classes Destroyed 12 | 1 1 2 . . . 8 . Worker 4 | . . . . . . 4 . Builder 1 | . . . . . . 1 . Hauler 3 | . . . . . . 3 . Recycler 6 | 1 . . . . . 5 . Watcher 2 | . 1 . . . . 1 . Swarmer 10 | . . 1 . . . 7 2 Grunt 19 | . . 1 . 2 . 15 1 Brawler 2 | . . . . . . 2 . Duelist 2 | . . . . . . 1 1 Sentry 2 | . . . . . . 2 . Hunter 1 | . . . . . . 1 . Programmer 1 | . . . . . . 1 . Best Kill Streak 8 | 1 1 1 . 2 . 8 2 Combat Bots Only 6 | . . 1 . 2 . 6 2 Max Kills in Single Turn 3 | 1 1 1 . 1 . 3 2 Gunslinging . | . . . . . . . . Exploded 2 | . . . . . . 2 2 Melee 1 | . . . . . . 1 . Uniques/NPCs Destroyed . | . . . . . . . . Combat | -11 -10 -10 -10 -9 -8 -7 -7 -------- Run | Scr Mat Min Exi Min Mat Fac Low Damage Taken 4114 | . 31 55 . 95 132 2186 1615 Core 768 | . . 18 . 29 20 195 506 Absorbed by Shields 102 | . . . . . 13 89 . Redirected to Shielding 48 | . . . . . 5 40 3 Regen/Repaired (Parts) 241 | . . . . . . 241 . Core Remaining (%) 92 | 100 . . . 81 96 . . Volleys Fired 148 | 2 13 5 . 7 3 107 11 Largest 2 | 2 2 2 . 2 2 2 2 Hottest 130 | 60 60 60 . 100 120 130 130 Shots Fired 258 | 4 26 10 . 10 4 187 17 Gun 78 | 4 26 10 . 3 1 34 . Cannon 156 | . . . . 3 . 138 15 Launcher 17 | . . . . . . 15 2 Special 7 | . . . . 4 3 . . Kinetic 151 | 2 13 5 . 6 1 124 . Thermal 53 | . . . . 4 3 31 15 Explosive 17 | . . . . . . 15 2 Electromagnetic 37 | 2 13 5 . . . 17 . Robot Hit Streak 12 | 3 6 5 . 2 4 12 4 Robot Miss Streak 8 | . 3 2 . 3 . 8 3 Penetration Max . | . . . . . . . . Secondary Targets . | . . . . . . . . Shots Hit Robots 157 | 3 14 6 . 3 2 119 10 Core Hits 130 | 2 1 3 . 3 1 113 7 Critical Kills 1 | . . . . . . 1 . Critical Parts Destroyed . | . . . . . . . . Critical Strikes 2 | . . . . . . 2 . Meltdown 1 | . . . . . . 1 . Blast 1 | . . . . . . 1 . Melee Attacks . | . . . . . . . . Impact . | . . . . . . . . Slashing . | . . . . . . . . Piercing . | . . . . . . . . Sneak Attacks . | . . . . . . . . Combat Hostiles . | . . . . . . . . Follow-up Attacks . | . . . . . . . . Damage Inflicted 4913 | 38 204 88 . 67 40 4097 379 Guns 787 | 38 204 88 . 28 11 418 . Cannons 2625 | . . . . 39 . 2313 273 Explosions 1451 | . . . . . . 1351 100 Melee . | . . . . . . . . Ramming 26 | . . . . . 5 15 6 Kinetic 2007 | 13 76 25 . 67 11 1815 . Thermal 931 | . . . . . 24 634 273 Explosive 1270 | . . . . . . 1170 100 Electromagnetic 679 | 25 128 63 . . . 463 . Impact . | . . . . . . . . Slashing . | . . . . . . . . Piercing . | . . . . . . . . Highest Corruption 2 | . . . . . . 2 2 Average Corruption 1 | . . . . . . 1 2 Corruption Purged . | . . . . . . . . Corruption Blocked . | . . . . . . . . Effects 10 | . . . . . . 8 2 Message Errors 2 | . . . . . . 2 . Matter Fused 2 | . . . . . . 1 1 Energy Discharges 1 | . . . . . . . 1 Data Loss (minor) 1 | . . . . . . 1 . Misfires 2 | . . . . . . 2 . Alerts 1 | . . . . . . 1 . Weapon Failures 1 | . . . . . . 1 . Overload Shots . | . . . . . . . . Overflow Damage 51 | . . . . . . 36 15 Projectiles 34 | . . . . . . 19 15 Explosions 17 | . . . . . . 17 . Melee . | . . . . . . . . Knockbacks 13 | . . . . . . 13 . Impact . | . . . . . . . . Kinetic 13 | . . . . . . 13 . Secondary . | . . . . . . . . Self-Inflicted Damage 92 | . . . . . 2 76 14 Shots 4 | . . . . . . 3 1 Rammed 6 | . . . . . 1 1 4 Targets Rammed 6 | . . . . . 1 1 4 Kicked . | . . . . . . . . Crushed . | . . . . . . . . Highest Temperature 367 | . 20 24 . 20 . 367 . Average Temperature 96 | . 20 18 . 10 . 114 . Received Heat Transfer 1122 | . . 24 . 51 48 753 246 Effects 1 | . . . . . . 1 . Shutdowns 1 | . . . . . . 1 . Siege Activations . | . . . . . . . . Robots Corrupted . | . . . . . . . . Combat Hostiles . | . . . . . . . . Parts Fried 2 | . . . . . . 2 . Impact Corruptions . | . . . . . . . . Robots Melted 1 | . . . . . . 1 . Combat Hostiles 1 | . . . . . . 1 . Parts Melted 2 | . . . . . . 2 . Heat Transferred 1212 | . . . . . 50 792 370 Parts Sabotaged . | . . . . . . . . Parts Stolen . | . . . . . . . . Parts Stripped . | . . . . . . . . Power Chain Reactions 2 | . . . . . . 2 . Missiles Intercepted . | . . . . . . . . Alert | -11 -10 -10 -10 -9 -8 -7 -7 ------- Run | Scr Mat Min Exi Min Mat Fac Low Peak Influence 1061 | 5 55 86 . 86 95 1061 . Initial 42 | . 3 21 . . 33 42 . Average 299 | 1 46 80 . 61 70 436 . Maximum Alert Level 3 | . . . . . . 3 . Low Security (%) 64 | 100 100 100 . 100 100 44 . Level 1 6 | . . . . . . 10 . Level 2 6 | . . . . . . 9 . Level 3 22 | . . . . . . 34 . Level 4 . | . . . . . . . . Level 5 . | . . . . . . . . High Security . | . . . . . . . . Max Security . | . . . . . . . . Squads Dispatched 9 | . 1 . . . 1 7 . Investigation 1 | . . . . . . 1 . Extermination 1 | . . . . . . 1 . Reinforcement 4 | . 1 . . . 1 2 . Assault 3 | . . . . . . 3 . Garrison . | . . . . . . . . Intercept . | . . . . . . . . Searches Triggered . | . . . . . . . . Construction Impeded . | . . . . . . . . Haulers Reinforced 1 | . . . . . . 1 . Active Scanning Responses . | . . . . . . . . Cargo Convoy Interrupts . | . . . . . . . . Stealth | -11 -10 -10 -10 -9 -8 -7 -7 --------- Run | Scr Mat Min Exi Min Mat Fac Low Distress Signals 6 | . 2 . . . 1 3 . Communications Jammed . | . . . . . . . . Distress Signals . | . . . . . . . . Times Spotted 115 | . 4 5 . 4 7 73 22 Peak Tracking Total 15 | . 2 3 . 2 9 15 12 Tactical Retreats 14 | . 1 . . 1 . 8 4 Traps | -11 -10 -10 -10 -9 -8 -7 -7 ------- Run | Scr Mat Min Exi Min Mat Fac Low Traps Triggered . | . . . . . . . . Indirectly . | . . . . . . . . Trap Hack Attempts . | . . . . . . . . Triggered . | . . . . . . . . Disarmed . | . . . . . . . . Reprogrammed . | . . . . . . . . Reused . | . . . . . . . . Traps Extracted . | . . . . . . . . Installed . | . . . . . . . . Triggered . | . . . . . . . . Most Traps Carried 1 | . . . . 1 1 1 . Machines | -11 -10 -10 -10 -9 -8 -7 -7 ---------- Run | Scr Mat Min Exi Min Mat Fac Low Machines Disabled 8 | . . . . . . 8 . Max in Single Turn 4 | . . . . . . 4 . Machines Sabotaged . | . . . . . . . . Garrisons Compromised . | . . . . . . . . Overloaded Fab Kills . | . . . . . . . . Hacking | -11 -10 -10 -10 -9 -8 -7 -7 --------- Run | Scr Mat Min Exi Min Mat Fac Low Machines Accessed 12 | . 1 . 4 . . 7 . Terminals 3 | . 1 . . . . 2 . Fabricators 1 | . . . . . . 1 . Repair Stations 1 | . . . . . . 1 . Recycling Units . | . . . . . . . . Scanalyzers 3 | . . . . . . 3 . Garrison Access . | . . . . . . . . Total Hacks 49 | . 3 . 27 . . 19 . Successful 42 | . 1 . 27 . . 14 . Failed 7 | . 2 . . . . 5 . Catastrophic . | . . . . . . . . Database Lockouts . | . . . . . . . . Manual . | . . . . . . . . Terminals 6 | . 3 . . . . 3 . Fabricators 2 | . . . . . . 2 . Repair Stations 3 | . . . . . . 3 . Recycling Units . | . . . . . . . . Scanalyzers 11 | . . . . . . 11 . Garrison Access . | . . . . . . . . Terminal Hacks 30 | . 1 . 27 . . 2 . Record 27 | . . . 27 . . . . Open DSF 1 | . . . . . . 1 . Locate Traps 1 | . 1 . . . . . . Hauler Manifests 1 | . . . . . . 1 . Fabricator Hacks 2 | . . . . . . 2 . Load Schematic 1 | . . . . . . 1 . Build 1 | . . . . . . 1 . Repair Station Hacks 2 | . . . . . . 2 . Scan Component 1 | . . . . . . 1 . Repair 1 | . . . . . . 1 . Recycling Unit Hacks . | . . . . . . . . Scanalyzer 8 | . . . . . . 8 . Insert Component 4 | . . . . . . 4 . Analyze 4 | . . . . . . 4 . Garrison Access Hacks . | . . . . . . . . Unauthorized Hacks . | . . . . . . . . Terminals . | . . . . . . . . Fabricators . | . . . . . . . . Repair Stations . | . . . . . . . . Recycling Units . | . . . . . . . . Scanalyzers . | . . . . . . . . Garrison Access . | . . . . . . . . Data Cores Recovered . | . . . . . . . . Used . | . . . . . . . . Hacking Detections 6 | . 1 . . . . 5 . Full Trace Events 1 | . . . . . . 1 . Feedback Events . | . . . . . . . . Feedback Blocked . | . . . . . . . . Robot Schematics Acquired . | . . . . . . . . Robots Built . | . . . . . . . . Authchips . | . . . . . . . . Time . | . . . . . . . . Total Robot Build Rating . | . . . . . . . . Part Schematics Acquired 4 | . . . . . . 4 . Parts Built 2 | . . . . . . 2 . Authchips . | . . . . . . . . Time 84 | . . . . . . 84 . Total Part Build Rating 8 | . . . . . . 8 . Parts Repaired 1 | . . . . . . 1 . Time 44 | . . . . . . 44 . Parts Recycled . | . . . . . . . . Recycled Matter . | . . . . . . . . Retrieved Matter . | . . . . . . . . Retrieved Components . | . . . . . . . . Parts Scanalyzed 4 | . . . . . . 4 . Part Schematics Acquired 4 | . . . . . . 4 . Parts Damaged . | . . . . . . . . Bothacking | -11 -10 -10 -10 -9 -8 -7 -7 ------------ Run | Scr Mat Min Exi Min Mat Fac Low Used RIF Installer . | . . . . . . . . Robots Hacked . | . . . . . . . . Non-combat . | . . . . . . . . Combat . | . . . . . . . . Robot Hacks Applied . | . . . . . . . . Relay Couplers Released . | . . . . . . . . Fabnet Peak Effective % . | . . . . . . . . Robots Rewired . | . . . . . . . . Allies Hacked . | . . . . . . . . Hacks Repelled . | . . . . . . . . Allies | -11 -10 -10 -10 -9 -8 -7 -7 -------- Run | Scr Mat Min Exi Min Mat Fac Low Total Allies . | . . . . . . . . Largest Group . | . . . . . . . . Highest-Rated Group . | . . . . . . . . Highest-Rated Ally . | . . . . . . . . Total Orders . | . . . . . . . . Ally Attacks . | . . . . . . . . Total Damage . | . . . . . . . . Kills . | . . . . . . . . Allies Corrupted . | . . . . . . . . Allies Melted . | . . . . . . . . Intel | -11 -10 -10 -10 -9 -8 -7 -7 ------- Run | Scr Mat Min Exi Min Mat Fac Low Robot Analysis Total . | . . . . . . . . Derelict Logs Recovered 4 | . . . . 3 . . 1 Drone Launches . | . . . . . . . . Drone Recoveries . | . . . . . . . . Exploration | -11 -10 -10 -10 -9 -8 -7 -7 ------------- Run | Scr Mat Min Exi Min Mat Fac Low Turns Passed 2829 | 54 236 175 535 241 82 1390 116 Spaces Moved 2347 | 36 189 161 595 232 78 986 70 Core 5 | 2 . . . . . . 3 Treads . | . . . . . . . . Legs . | . . . . . . . . Wheels 2342 | 34 189 161 595 232 78 986 67 Hover . | . . . . . . . . Flight . | . . . . . . . . Fastest Speed 50 | 50 90 90 90 80 80 80 50 Average Speed 90 | 89 90 90 90 87 80 91 98 Slowest Speed 115 | 100 90 90 90 90 80 100 115 Overloaded Moves . | . . . . . . . . Propulsion Burnouts . | . . . . . . . . Robots Hopped . | . . . . . . . . Cave-ins Triggered . | . . . . . . . . Exploration Rate (%) 40 | 3 51 51 90 81 15 23 10 Regions Visited 7 Branch Regions 4 Pre-discovered Areas 2 | . . . 1 1 . . . Known Exits Taken . | . . . . . . . . Unknown Exits Taken 7 | 1 1 1 1 1 1 1 . Scrap Searched 3 | . . 1 . 2 . . . Spaces Dug 6 | . . . . 4 2 . . Terrain Destroyed 147 | . . . . 4 2 125 16 Melee . | . . . . . . . . Projectile 22 | . . . . 4 2 14 2 AOE 125 | . . . . . . 111 14 Terrain Rammed . | . . . . . . . . Walls Destroyed . | . . . . . . . . Machines Disabled . | . . . . . . . . Actions | -11 -10 -10 -10 -9 -8 -7 -7 --------- Run | Scr Mat Min Exi Min Mat Fac Low Total 2784 | 53 230 181 594 249 86 1291 100 Wait 157 | . 17 12 . . 1 117 10 Move 2340 | 35 188 160 594 231 77 985 70 Hop . | . . . . . . . . Pick Up 45 | 10 8 1 . 3 1 22 . Fast Attach 8 | . . . . . 1 7 . Attach 25 | 6 1 . . . 1 15 2 Detach 4 | . . . . . . 3 1 Swap 19 | . . 1 . 5 1 11 1 Drop 32 | . 3 2 . 3 . 23 1 Fire 148 | 2 13 5 . 7 3 107 11 Melee . | . . . . . . . . Ram 6 | . . . . . 1 1 4 Kick . | . . . . . . . . Crush . | . . . . . . . . Escape Stasis . | . . . . . . . . Rewire . | . . . . . . . . Trap . | . . . . . . . . Miscellaneous . | . . . . . . . . Route ------- -11/Scrapyard -10/Materials -10/Mines (discovered 2 exits: [*Mat] / *Exi) -10/Exiles (discovered 2 exits: [*Min x2]) -9/Mines -8/Materials -7/Factory (discovered 2 exits: [*Fac] / [*Low]) -7/Lower Caves History --------- Turn | Location | Event 2 | -11/Scrapyard | Met Revision 17 20 | -11/Scrapyard | Discovered new exit (range 15) 55 | -11/Scrapyard | Entered Materials 126 | -10/Materials | Met 8R-AWN 252 | -10/Materials | Discovered new exit (range 7) 291 | -10/Materials | Entered Mines 294 | -10/Mines | Followed 8R-AWN into the Mines 327 | -10/Mines | Build established: Mutant 373 | -10/Mines | Discovered new exit (range 11) 460 | -10/Mines | Discovered new exit (range 5) 466 | -10/Mines | Entered Exiles 491 | -10/Exiles | Discovered new exit (range 14) 513 | -10/Exiles | Welcomed by 8R-AWN 530 | -10/Exiles | Met EX-HEX 570 | -10/Exiles | Met EX-BIN 647 | -10/Exiles | Met EX-DEC 691 | -10/Exiles | Visited The Gauntlet 803 | -10/Exiles | Learned location of Zion (-6) 851 | -10/Exiles | Discovered new exit (range 14) 1001 | -10/Exiles | Entered Mines 1121 | -9/Mines | Learned Materials trap positions 1196 | -9/Mines | Found a hidden stash of uninstalled traps 1204 | -9/Mines | Discovered new exit (range 13) 1208 | -9/Mines | Learned Materials trap positions 1242 | -9/Mines | Entered Materials 1242 | -8/Materials | Evolved 4 slots: Propulsion x1, Utility x3 1243 | -8/Materials | Loaded intel: 14 trap records 1299 | -8/Materials | Discovered new exit (range 13) 1324 | -8/Materials | Entered Factory 1324 | -7/Factory | Evolved 2 slots: Propulsion x1, Utility x1 1326 | -7/Factory | Discovered new exit (range 8) 1537 | -7/Factory | Discovered new exit (range 6) 2303 | -7/Factory | Lost 3 parts (1u2w) 2476 | -7/Factory | Fabricated Arm. Huge Wheel (x2) 2524 | -7/Factory | First assault squad dispatched 2577 | -7/Factory | Repaired Arm. Huge Wheel? 2714 | -7/Factory | Entered Lower Caves 2748 | -7/Lower Caves | Attracted the attention of an 0b10 outpost 2768 | -7/Lower Caves | Learned Factory interactive machine intel 2809 | -7/Lower Caves | Attracted the attention of an 0b10 checkpoint 2819 | -7/Lower Caves | Core integrity fell below 50% 2828 | -7/Lower Caves | Core integrity fell below 20% 2830 | -7/Lower Caves | Destroyed by Y-54 Guardian with Gatling Laser Last Messages --------------- 02793_ Carbon-fiber Leg fries itself beyond repair. 02799_ Penetrated by Slug. 02803_ Hvy. Ion Cannon destroyed. 02805_ Arm. Huge Wheel destroyed. 02808_ Hvy. Deuterium Engine destroyed. 02808_ Critical hit (Burn: +37). 02809_ Y-54 Guardian: "INTERCEPTING UNREGISTERED DERELICT." 02811_ Imp. Light Armor Plating destroyed. 02813_ Arm. Huge Wheel destroyed. 02817_ Imp. Cooling System destroyed. 02817_ Hvy. Ion Cannon destroyed. 02817_ Slammed into L-41 Fighter. 02823_ Penetrated by Slug. 02825_ Slammed into S-27 Virus. 02825_ ECM Suite destroyed. 02826_ Adv. Weight Redist. System destroyed. 02826_ Slug penetrates Wall. 02826_ Dropped Sml. Storage Unit. 02827_ Slammed into G-47 Trooper. 02830_ G-47 Trooper destroyed. Map ----- +----------------------------------------------------+ | ?????????????????????????????????????????????????? | | ?????????????????????????????????????????????????? | | ?????????????????????????????????????????????????? | | ?????????????????????????????????????????????????? | | ?????????????????????????????????????????????????? | | ?????????????????????????????????????????####????? | | ???????????????????????????????????????### ####?? | | ??????????????????????????????????????## %### | | ??????????????????????????????? ?????# % | | ???????????????????????????????# ????# ## #### | | ???????????????????????????????$ ?#??# ## #??? | | ????????????????????????????#### # ??## ## #??? | | ????????????????????????????# ???##?# #??? | | ????????????????????????????# ?????## ##??? | | ????????????????????????????? ???###" #???? | | ??????????????????????????????# ??## #???? | | ???????????????????????????????# #?## ##???? | | ???????????????????????????????# ### ##???? | | ???????????????????????????????# #???? | | ???????????????????????????????## #??## | | ???????????????????????????????## ##?## | | ???????????????# ###??????????## ## #####?## | | ???????????????? ???????## ### ####### | | ??????????????????? ???#### sY #?# | | ?????????????????????# ###%s s #?# ##### | | ?????????????????????# @ *g## #?# #???# ## | | ?????????????????????# Y ### ##?# #?? + # ## | | ????????????????????## g ### ##??# ?? #### #? | | ????????????????????# ## #???# ?" ???# ? | | ????????????????????## #???# # ????# | | ?????????????????????# ####???# # ????# # | | ?????????????????????# #??????? ##?????# # | | ?????????????????????#### #??????? ??????? # | | ????????????????????????# ###??????? ??????? # | | ????????????????????????## ##????????????????? | | ?????????????????????????# #??????????????????## | | ?????????????????????????# #????????????????????# | | ????????????????????????? ????????????????????? | | ????????????????????????? ?????????????????????? | | ????????????????????????####?????????????????????? | | ?????????????????????????????????????????????????? | | ?????????????????????????????????????????????????? | | ?????????????????????????????????????????????????? | | ?????????????????????????????????????????????????? | | ?????????????????????????????????????????????????? | | ?????????????????????????????????????????????????? | | ?????????????????????????????????????????????????? | | ?????????????????????????????????????????????????? | | ?????????????????????????????????????????????????? | | ?????????????????????????????????????????????????? | +----------------------------------------------------+ Best States ------------- Heat Dissipation 61 Energy Generation 18 Energy Capacity 310 Matter Stores 300 Matter Capacity 300 Sight Range 16 Robot Scan Range 15 Terrain Scan Density 10 ECM Strength 1 Additional Mass Support 9 Armor Coverage 375 Core Shielding 20 Evasion (%) 50 Item Schematics ----------------- Hrd. Light Armor Plating | -7/Factory | Scanalyzed Arm. Huge Wheel | -7/Factory | Scanalyzed Grenade Launcher | -7/Factory | Scanalyzed Hvy. Deuterium Engine | -7/Factory | Scanalyzed Robot Schematics ------------------ None Fabricated ------------ Arm. Huge Wheel | x2 | -7/Factory Alien Tech Used ----------------- None Achievements -------------- None Challenges ------------ None Game ------ Seed SupersonicInsulationWand Manual? 0 Play Time 01:26:40 Cumulative 103.4 hours Start 2022.05.06 @ 16:33:34 End 2022.05.06 @ 18:12:11 Sessions 1 Manual Loads 0 Difficulty Rogue Special Mode None Game No. 44 Rogue 41 Adventurer 3 Explorer 0 Win Type - Total 0 Types 0/0/0/0/0/0/0/0/0 Lore% 21 Gallery% 40 Achievement% 27 Wizard Run 0 Options --------- ASCII 0 Keyboard 0 Movement Mouse Keybinds 0 Fullscreen 1 Font 18/SmallcapsGlow Map View 76x50 Tactical HUD 1 Map Filters NONE Filters NONE Steam 1 RUN: a4aff4c7-9a28-44cb-a9eb-ecd297641727